Cogmind - Beta 13 @@@ ROGUE MODE // 2024.03.30 @ 23:52:21 Player: Jiyva Result: Self-destructed Performance ------------- Evolutions (2) 1000 Regions Visited (5) 1000 Robots Destroyed (11) 55 Value Destroyed (278) 278 Prototype IDs (1) 20 Alien Tech Used (0) 0 Bonus (82) 82 TOTAL SCORE: 2435 Bonus ------- Follower Combat Kills 95 Friendly Fire -13 Cogmind --------- Core Integrity 534/550 Matter 296/300 Energy 125/125 System Corruption 0% Temperature Cool (0) Movement Treading (240) Ox1 Location -8/Materials Parts ------- > --- POWER (1) -------- Light Ion Engine > --- PROPULSION (4) --- Improved Treads Improved Treads > --- UTILITY (4) ------ High-capacity Storage Unit Long-range Tractor Beam Sensor Drone Bay (20/20) > --- WEAPON (2) ------- Light Assault Rifle Light Assault Rifle > --- INVENTORY (20) --- Light Nuclear Core Improved Heat Sink Small Storage Unit Huge Storage Unit Targeting Computer Mining Laser Peak State ------------ > --- POWER ------------ Light Ion Engine > --- PROPULSION ------- Improved Treads Improved Treads Improved Treads Improved Treads > --- UTILITY ---------- High-capacity Storage Unit Long-range Tractor Beam Sensor Drone Bay > --- WEAPON ----------- Light Assault Rifle Light Assault Rifle > --- INVENTORY -------- Light Nuclear Core Improved Heat Sink Small Storage Unit Huge Storage Unit Targeting Computer Mining Laser [Rating: 24] Favorites ----------- Power Light Ion Engine Engine Light Ion Engine Propulsion Improved Treads Treads Improved Treads Wheel Compact Wheel Utility Small Storage Unit Device Sensor Drone Bay Storage Small Storage Unit Processor Targeting Computer Weapon Light Assault Rifle Energy Gun EM Pulse Gun Energy Cannon Beam Cannon Ballistic Gun Light Assault Rifle Special Weapon Mining Laser Build | -11 -10 -10 -10 -9 -8 ------- Run | Yrd Mat Min Exi Min Mat Slots Evolved 4 | . . . . . 4 Power . | . . . . . . Propulsion 2 | . . . . . 2 Utility 2 | . . . . . 2 Weapon . | . . . . . . Parts Attached 28 | 6 10 2 2 1 7 Power 2 | 1 1 . . . . Engine 2 | 1 1 . . . . Core . | . . . . . . Reactor . | . . . . . . Propulsion 8 | 2 4 . . . 2 Treads 6 | . 4 . . . 2 Leg . | . . . . . . Wheel 2 | 2 . . . . . Hover . | . . . . . . Flight . | . . . . . . Utility 9 | 1 3 . 2 . 3 Device 2 | . . . 1 . 1 Storage 6 | 1 2 . 1 . 2 Processor 1 | . 1 . . . . Hackware . | . . . . . . Protection . | . . . . . . Artifact . | . . . . . . Weapon 9 | 2 2 2 . 1 2 Energy Gun 1 | 1 . . . . . Energy Cannon 1 | . 1 . . . . Ballistic Gun 6 | 1 1 2 . 1 1 Ballistic Cannon . | . . . . . . Launcher . | . . . . . . Special Weapon 1 | . . . . . 1 Impact Weapon . | . . . . . . Slashing Weapon . | . . . . . . Piercing Weapon . | . . . . . . Special Melee Weapon . | . . . . . . Unidentified Prototypes 1 | . . . 1 . . Parts Lost 3 | . 1 . . . 2 Power 1 | . 1 . . . . Propulsion 2 | . . . . . 2 Utility . | . . . . . . Weapon . | . . . . . . Highest Loss Streak 2 | . 1 . . . 2 To Critical Strikes . | . . . . . . Average Slot Usage (%) 99 | . 99 99 100 100 88 Engine 13 | . 14 14 14 14 9 Treads 27 | . 22 28 28 28 36 Wheel 1 | . 4 . . . . Device 5 | . . . 7 14 16 Storage 13 | . 14 14 14 14 9 Processor 8 | . 13 14 6 . . Energy Cannon 4 | . 11 7 . . . Ballistic Gun 22 | . 15 19 28 28 16 Naked Turns . | . . . . . . Heaviest Build 60 | 12 12 12 25 25 60 Greatest Support 92 | 26 46 46 46 46 92 Greatest Overweight (x) . | . . . . . . Average Overweight (x) . | . . . . . . Largest Inventory Capacity 25 | 8 25 8 8 8 25 Average Capacity 8 | 6 8 8 7 8 19 Most Carried 8 | 6 8 8 8 8 7 Average Carried 7 | 2 6 7 7 8 6 Final Capacity 20 | 8 8 8 8 8 20 Final Carried 8 | 6 8 8 8 8 6 Class Distribution -------------------- 100% | Mutant Dominant Class ---------------- Mutant | -10/Materials Mutant | -10/Mines Mutant | -10/Exiles Mutant | -9/Mines Mutant | -8/Materials Resources | -11 -10 -10 -10 -9 -8 ----------- Run | Yrd Mat Min Exi Min Mat Matter Collected 553 | 176 176 72 20 30 79 Remotely 79 | . . . . . 79 Salvage Created 313 | . 217 . . 17 79 Parts 22 | . 15 . . 2 5 Haulers Intercepted . | . . . . . . Recyclers Shooed . | . . . . . . Parts Field Recycled . | . . . . . . Retrieved Matter . | . . . . . . Parts Self-Destructed . | . . . . . . Prevented . | . . . . . . Kills | -11 -10 -10 -10 -9 -8 ------- Run | Yrd Mat Min Exi Min Mat Combat Hostiles Destroyed 10 | . 7 . . 1 2 Guns 6 | . 3 . . 1 2 Cannons 4 | . 4 . . . . Classes Destroyed 3 | . 3 . . . . Operator 1 | . 1 . . . . Swarmer 5 | . 3 . . 1 1 Grunt 5 | . 4 . . . 1 Best Kill Streak 2 | . 2 . . 1 2 Combat Bots Only 2 | . 2 . . 1 2 Max Kills in Single Turn 1 | . 1 . . 1 1 Gunslinging . | . . . . . . Exploded . | . . . . . . Melee . | . . . . . . Uniques/NPCs Destroyed . | . . . . . . Combat | -11 -10 -10 -10 -9 -8 -------- Run | Yrd Mat Min Exi Min Mat Hostile Shots Fired 114 | . 46 3 . 14 51 Missed 21 | . 8 . . 5 8 Damage Taken 1118 | . 463 29 . 72 554 Core 105 | . 82 . . 7 16 Absorbed by Shields . | . . . . . . Core Remaining (%) 82 | 100 . . . 64 . Volleys Fired 50 | . 33 . . 5 12 Largest 2 | . 2 . . 2 2 Hottest 120 | . 80 . . 40 120 Shots Fired 100 | . 66 . . 10 24 Gun 74 | . 41 . . 10 23 Cannon 25 | . 25 . . . . Launcher . | . . . . . . Special 1 | . . . . . 1 Kinetic 66 | . 33 . . 10 23 Thermal 26 | . 25 . . . 1 Explosive . | . . . . . . Electromagnetic 8 | . 8 . . . . Robot Hit Streak 9 | . 6 . . 1 9 Robot Miss Streak 4 | . 3 . . 4 2 Penetration Max . | . . . . . . Secondary Targets 2 | . . . . 1 1 Max Gunslinging Chain 1 | . . . . 1 1 Shots Hit Robots 57 | . 36 . . 3 18 Core Hits 23 | . 15 . . 1 7 Critical Kills . | . . . . . . Critical Parts Destroyed . | . . . . . . Critical Strikes . | . . . . . . Melee Attacks . | . . . . . . Impact . | . . . . . . Slashing . | . . . . . . Piercing . | . . . . . . Sneak Attacks . | . . . . . . Combat Hostiles . | . . . . . . Follow-up Attacks . | . . . . . . Damage Inflicted 725 | . 538 . . 46 141 Guns 413 | . 226 . . 46 141 Cannons 260 | . 260 . . . . Explosions 52 | . 52 . . . . Melee . | . . . . . . Ramming . | . . . . . . Kinetic 331 | . 144 . . 46 141 Thermal 312 | . 312 . . . . Explosive . | . . . . . . Electromagnetic 82 | . 82 . . . . Impact . | . . . . . . Slashing . | . . . . . . Piercing . | . . . . . . Highest Corruption . | . . . . . . Average Corruption . | . . . . . . Corruption Purged . | . . . . . . Corruption Blocked . | . . . . . . Overload Shots . | . . . . . . Overflow Damage . | . . . . . . Projectiles . | . . . . . . Explosions . | . . . . . . Melee . | . . . . . . Knockbacks . | . . . . . . Impact . | . . . . . . Kinetic . | . . . . . . Secondary . | . . . . . . Self-Inflicted Damage 40 | . 40 . . . . Shots 1 | . 1 . . . . Rammed . | . . . . . . Targets Rammed . | . . . . . . Kicked . | . . . . . . Crushed . | . . . . . . Highest Temperature 200 | . 200 . . . 43 Average Temperature 52 | . 58 . . . 12 Received Heat Transfer 330 | . 105 9 . . 216 Siege Activations . | . . . . . . Robots Corrupted . | . . . . . . Combat Hostiles . | . . . . . . Parts Fried . | . . . . . . Impact Corruptions . | . . . . . . Robots Melted . | . . . . . . Combat Hostiles . | . . . . . . Parts Melted . | . . . . . . Heat Transferred 605 | . 605 . . . . Parts Sabotaged . | . . . . . . Parts Stolen . | . . . . . . Parts Stripped . | . . . . . . Power Chain Reactions 1 | . 1 . . . . Alert | -11 -10 -10 -10 -9 -8 ------- Run | Yrd Mat Min Exi Min Mat Peak Influence 215 | . 215 146 . 74 51 Initial 83 | . . 83 . . . Average 37 | . 52 56 . 1 2 Maximum Alert Level 1 | . 1 . . . . Low Security (%) 98 | 100 94 100 . 100 100 Level 1 1 | . 5 . . . . Level 2 . | . . . . . . Level 3 . | . . . . . . Level 4 . | . . . . . . Level 5 . | . . . . . . High Security . | . . . . . . Max Security . | . . . . . . Squads Dispatched 1 | . 1 . . . . Investigation . | . . . . . . Extermination . | . . . . . . Reinforcement 1 | . 1 . . . . Assault . | . . . . . . Garrison . | . . . . . . Intercept . | . . . . . . Searches Triggered . | . . . . . . Construction Impeded . | . . . . . . Haulers Reinforced . | . . . . . . Active Scanning Responses . | . . . . . . Cargo Convoy Interrupts . | . . . . . . Stealth | -11 -10 -10 -10 -9 -8 --------- Run | Yrd Mat Min Exi Min Mat Distress Signals 4 | . 4 . . . . Communications Jammed . | . . . . . . Distress Signals . | . . . . . . Times Spotted 33 | . 19 5 . 3 6 Peak Tracking Total 6 | . 5 3 . 3 6 Tactical Retreats 3 | . 3 . . . . Traps | -11 -10 -10 -10 -9 -8 ------- Run | Yrd Mat Min Exi Min Mat Traps Triggered 1 | . 1 . . . . Indirectly . | . . . . . . Trap Hack Attempts . | . . . . . . Triggered . | . . . . . . Disarmed . | . . . . . . Reprogrammed . | . . . . . . Reused . | . . . . . . Traps Extracted . | . . . . . . Installed . | . . . . . . Triggered . | . . . . . . Machines | -11 -10 -10 -10 -9 -8 ---------- Run | Yrd Mat Min Exi Min Mat Machines Disabled . | . . . . . . Max in Single Turn . | . . . . . . Machines Repaired . | . . . . . . Machines Dismantled . | . . . . . . Machines Sabotaged . | . . . . . . Overloaded Fab Kills . | . . . . . . Hacking | -11 -10 -10 -10 -9 -8 --------- Run | Yrd Mat Min Exi Min Mat Machines Accessed 8 | . 3 1 4 . . Terminals 3 | . 3 . . . . Fabricators . | . . . . . . Repair Stations . | . . . . . . Recycling Units . | . . . . . . Scanalyzers . | . . . . . . Garrison Access . | . . . . . . Total Hacks 57 | . 7 1 49 . . Successful 51 | . 1 1 49 . . Failed 6 | . 6 . . . . Catastrophic 1 | . 1 . . . . Database Lockouts . | . . . . . . Manual 11 | . 6 . 5 . . Terminals 7 | . 7 . . . . Fabricators . | . . . . . . Repair Stations . | . . . . . . Recycling Units . | . . . . . . Scanalyzers . | . . . . . . Garrison Access . | . . . . . . Terminal Hacks 51 | . 1 1 49 . . Record 49 | . . . 49 . . Open Door 1 | . . 1 . . . Registered Components 1 | . 1 . . . . Fabricator Hacks . | . . . . . . Repair Station Hacks . | . . . . . . Recycling Unit Hacks . | . . . . . . Scanalyzer . | . . . . . . Garrison Access Hacks . | . . . . . . Unauthorized Hacks . | . . . . . . Terminals . | . . . . . . Fabricators . | . . . . . . Repair Stations . | . . . . . . Recycling Units . | . . . . . . Scanalyzers . | . . . . . . Garrison Access . | . . . . . . Data Cores Recovered 1 | . 1 . . . . Used 1 | . 1 . . . . Hacking Detections 2 | . 2 . . . . Full Trace Events . | . . . . . . Feedback Events . | . . . . . . Feedback Blocked . | . . . . . . Robot Schematics Acquired . | . . . . . . Robots Built . | . . . . . . Authchips . | . . . . . . Time . | . . . . . . Total Robot Build Rating . | . . . . . . Part Schematics Acquired . | . . . . . . Parts Built . | . . . . . . Authchips . | . . . . . . Time . | . . . . . . Total Part Build Rating . | . . . . . . Parts Repaired . | . . . . . . Time . | . . . . . . Parts Recycled . | . . . . . . Recycled Matter . | . . . . . . Retrieved Matter . | . . . . . . Retrieved Components . | . . . . . . Parts Scanalyzed . | . . . . . . Part Schematics Acquired . | . . . . . . Parts Damaged . | . . . . . . Bothacking | -11 -10 -10 -10 -9 -8 ------------ Run | Yrd Mat Min Exi Min Mat Used RIF Installer . | . . . . . . Robots Hacked . | . . . . . . Non-combat . | . . . . . . Combat . | . . . . . . Robot Hacks Applied . | . . . . . . Relay Couplers Released . | . . . . . . Fabnet Peak Effective % . | . . . . . . Robots Rewired . | . . . . . . Allies Hacked . | . . . . . . Hacks Repelled . | . . . . . . Allies | -11 -10 -10 -10 -9 -8 -------- Run | Yrd Mat Min Exi Min Mat Total Allies 6 | . . 6 . . . Largest Group 4 | . . 4 4 2 . Highest-Rated Group 78 | . . 78 78 32 . Highest-Rated Ally 31 | . . 31 31 16 . Total Orders 8 | . . . 1 3 4 STAY 2 | . . . . 1 1 FOLLOW 1 | . . . . . 1 EXPLORE 1 | . . . . . 1 RETURN 4 | . . . 1 2 1 Ally Attacks 35 | . . 31 . 4 . Total Damage 428 | . . 400 . 28 . Kills 7 | . . 5 . 2 . Allies Corrupted . | . . . . . . Allies Melted . | . . . . . . Intel | -11 -10 -10 -10 -9 -8 ------- Run | Yrd Mat Min Exi Min Mat Robot Analysis Total . | . . . . . . Derelict Logs Recovered 2 | . . 1 . 1 . Drone Launches 21 | . . . 17 2 2 Drone Recoveries 21 | . . . 17 2 2 Exploration | -11 -10 -10 -10 -9 -8 ------------- Run | Yrd Mat Min Exi Min Mat Turns Passed 4675 | 67 1028 1100 1519 703 258 Spaces Moved 2603 | 68 548 656 939 339 53 Core 22 | 22 . . . . . Treads 2390 | . 403 656 939 339 53 Legs . | . . . . . . Wheels 191 | 46 145 . . . . Hover . | . . . . . . Flight . | . . . . . . Fastest Speed 50 | 50 90 160 160 160 160 Average Speed 153 | 76 141 160 160 160 160 Slowest Speed 160 | 90 160 160 160 160 160 Overloaded Moves . | . . . . . . Propulsion Burnouts . | . . . . . . Robots Hopped . | . . . . . . Cave-ins Triggered . | . . . . . . Exploration Rate (%) 52 | 4 56 98 93 50 11 Regions Visited 5 Branch Regions 3 Pre-discovered Areas 2 | . . 1 1 . . Known Exits Taken 1 | . . . . 1 . Unknown Exits Taken 4 | 1 1 1 1 . . Scrap Searched 4 | . . 2 . 2 . Spaces Dug . | . . . . . . Terrain Destroyed 5 | . 4 . . . 1 Melee . | . . . . . . Projectile 1 | . . . . . 1 AOE 4 | . 4 . . . . Terrain Rammed . | . . . . . . Walls Destroyed . | . . . . . . Machines Disabled . | . . . . . . Actions | -11 -10 -10 -10 -9 -8 --------- Run | Yrd Mat Min Exi Min Mat Total 3177 | 79 740 709 956 491 202 Wait 460 | . 132 42 10 146 130 Move 2598 | 67 547 655 938 338 53 Hop . | . . . . . . Pick Up 23 | 6 8 5 4 . . Fast Attach 13 | 6 4 . 1 1 1 Attach 6 | . 2 2 . . 2 Detach 1 | . 1 . . . . Swap 9 | . 4 . 1 . 4 Drop 17 | . 9 5 2 1 . Fire 50 | . 33 . . 5 12 Melee . | . . . . . . Ram . | . . . . . . Kick . | . . . . . . Crush . | . . . . . . Escape Stasis . | . . . . . . Rewire . | . . . . . . Trap . | . . . . . . Miscellaneous . | . . . . . . Route ------- -11/Scrapyard -10/Materials -10/Mines (discovered 3 exits: [*Mat x2] / *Exi) -10/Exiles (discovered 2 exits: [*Min x2]) -9/Mines -8/Materials History --------- Turn | Location | Event 6 | -11/Scrapyard | Discovered new exit (range 15) 68 | -11/Scrapyard | Entered Materials 302 | -10/Materials | Build established: Mutant 898 | -10/Materials | Discovered new exit (range 13) 1096 | -10/Materials | Entered Mines 1149 | -10/Mines | Assisted by bots powering up and referring to "LRC-V3" 1247 | -10/Mines | Discovered new exit (range 14) 1320 | -10/Mines | Learned location of Zion (-7) 1350 | -10/Mines | Found the Drone Emporium 1357 | -10/Mines | Found Prototype Device 1684 | -10/Mines | Discovered new exit (range 12) 1782 | -10/Mines | Deemed a non-threat by the Exiles lab entrance 1784 | -10/Mines | Discovered new exit (range 5) 1952 | -10/Mines | Received a Mining Laser from a helpful Derelict 2196 | -10/Mines | Entered Exiles 2196 | -10/Exiles | Accompanied by 4 allies 2220 | -10/Exiles | Discovered new exit (range 15) 2269 | -10/Exiles | Met 8R-AWN 2292 | -10/Exiles | Met EX-HEX 2349 | -10/Exiles | Met EX-BIN 2686 | -10/Exiles | Met EX-DEC 2815 | -10/Exiles | Discovered new exit (range 10) 2873 | -10/Exiles | Identified Sensor Drone Bay 3009 | -10/Exiles | Visited The Gauntlet 3715 | -10/Exiles | Entered Mines 3715 | -9/Mines | Accompanied by 2 allies 4160 | -9/Mines | A weapon hastily lodged in a ceiling crevice suddenly fell to the ground 4189 | -9/Mines | Discovered new exit (range 13) 4232 | -9/Mines | Identified exit to Materials 4248 | -9/Mines | Learned location of 1 exit from Proximity Caves 4418 | -9/Mines | Entered Materials 4418 | -8/Materials | Evolved 4 slots: Propulsion x2, Utility x2 4676 | -8/Materials | Self-destructed Last Messages --------------- 04298_ T-07 Excavator is excavating. 04417_ Sensor Drone retrieved by Sensor Drone Bay. PARAMETERS=PROPULSION+2,UTILITY+2 LOCATION=MATERIALS GOAL=ESCAPE 04424_ Sensor Drone released from Sensor Drone Bay. 04444_ Acquired Lrn. Tractor Beam. 04490_ Sensor Drone retrieved by Sensor Drone Bay. 04495_ Sensor Drone released from Sensor Drone Bay. 04577_ C-30 ARC bursts open, deploying its payload. 04577_ S-10 Pest unfolds itself. 04589_ Sensor Drone retrieved by Sensor Drone Bay. 04650_ Destroyed Flight Unit. 04653_ S-10 Pest destroyed. 04654_ Acquired 20 matter. 04667_ Hadron Collector disabled. 04671_ G-50 Soldier destroyed. 04671_ Switching to secondary target: G-47 Trooper. 04672_ Acquired 59 matter. 04672_ Imp. Treads destroyed. Map ----- +----------------------------------------------------+ | | | | | | | | | | | | | | | | | | | | | | | | | | | | | | | | | | | | | | | | | | | ?????????????##############??????????????????????? | | ?????????????#| #??????????????????????? | | ?????????????# """" """" #??????????????????????? | | ?????????????#[ """" """gs#??????????????????????? | | ?????????????# """" """[@#??????????????????????? | | ?????????????# sg*#??????????????????????? | | ?????????????#######+######??????????????????????? | | ????????????????# #????????????????????????? | | ????????????????# #????????????????????????? | | ????????????????# #????????????????????????? | | ????????????######### #????????????????????????? | | ???????????? """ # #????????????????????????? | | ???????????? """"" # #????????????????????????? | | ???????????# """"" + ##########+#+#???????????? | | ???????????# """"" # ??????????? | | ???????????# """ # ??????????? | | ???????????# !# ??????????? | | ???????????# # ##############???????????? | | ???????????# [# # #??????????????? | | ???????????# # # #??????????????? | | ???????????########## + #??????????????? | | ????????????????????# # ! #??????????????? | | ????????????????????# ###########??????????????? | | ????????????????????# ########?????????????????? | | ????????????????????#" # ] #?????????????????? | | ????????????????????#%" # ] #?????????????????? | | ????????????????????#" # ! #?????????????????? | | ????????????????????# / #?????????????????? | | ????????????????????# # ! #?????????????????? | +----------------------------------------------------+ Best States ------------- Heat Dissipation 31 Energy Generation 10 Energy Capacity 125 Matter Stores 300 Matter Capacity 300 Sight Range 16 Terrain Scan Density 10 Evasion (%) 50 Targeting Accuracy 5 Recoil Reduction 4 Item Schematics ----------------- None Robot Schematics ------------------ None Fabricated ------------ Nothing Alien Tech Used ----------------- None Achievements -------------- None Challenges ------------ None Game ------ Seed NodeSlugWarhead Manual? 0 Play Time 01:13:55 Cumulative 234.2 hours Start 2024.03.30 @ 05:35:52 End 2024.03.30 @ 23:52:21 Sessions 12 Manual Loads 0 Difficulty Rogue Special Mode None Game No. 66 Rogue 66 Adventurer 0 Explorer 0 Win Type - Total 0 Types 0/0/0/0/0/0/0/0/0 Lore% 43 Gallery% 60 Achievement% 39 Wizard Run 0 Options --------- Layout 0 ASCII 1 Keyboard 1 Movement Vi Keybinds 1 Fullscreen 1 Font 18/X11 Map View 76x50 Zoom Use 0% Tactical HUD 1 Map Filters NONE Filters NONE Steam 1 RUN: a2ae5f3e-bfe0-4adc-8fac-359b001ce976